fUST/lending_fUST_20250901
["ID","MTS","AMOUNT","RATE_DAILY","PERIOD"]
[382604191,1756677043148,-860.79,0.00016779,2]
[382604193,1756677043158,-480.0,0.00016779,2]
[382604195,1756677043167,-480.0,0.00016779,2]
[382604197,1756677043176,-732.44,0.00016779,2]
[382604199,1756677043186,-1347.77,0.00016779,2]
[382604201,1756677043195,-480.0,0.00016779,2]
[382604203,1756677043204,-480.0,0.00016779,2]
[382604205,1756677043213,-525.03,0.00016779,2]
[382604207,1756677043223,-229.27187394,0.00016779,2]
[382604210,1756677043233,-480.0,0.00016779,2]
[382604212,1756677043242,-1046.11,0.00016779,2]
[382604214,1756677043251,-562.15,0.00016779,2]
[382604216,1756677043260,-480.0,0.00016779,2]
[382604218,1756677043268,-480.0,0.00016779,2]
[382604220,1756677043277,-480.0,0.00016779,2]
[382604222,1756677043286,-480.0,0.00016779,2]
[382604224,1756677043295,-480.0,0.00016779,2]
[382604226,1756677043304,-614.67,0.00016779,2]
[382604228,1756677043313,-480.0,0.00016779,2]
[382604230,1756677043323,-480.0,0.00016779,2]
[382604232,1756677043332,-480.0,0.00016779,2]
[382604234,1756677043341,-480.0,0.00016779,2]
[382604236,1756677043350,-480.0,0.00016779,2]
[382604238,1756677043359,-480.0,0.00016779,2]
[382604239,1756677043368,-480.0,0.00016779,2]
[382604241,1756677043378,-480.0,0.00016779,2]
[382604243,1756677043387,-480.0,0.00016779,2]
[382604245,1756677043396,-480.0,0.00016779,2]
[382604247,1756677043405,-480.0,0.00016779,2]
[382604249,1756677043415,-480.0,0.00016779,2]
[382604252,1756677043425,-833.79,0.0001678,2]
[382604254,1756677043435,-480.0,0.0001678,2]
[382604255,1756677043444,-480.0,0.0001678,2]
[382604257,1756677043453,-480.0,0.0001678,2]
[382604259,1756677043463,-480.0,0.0001678,2]
[382604261,1756677043472,-480.0,0.0001678,2]
[382604263,1756677043481,-302.59980593,0.00016781,2]
[382604265,1756677043491,-480.0,0.00016781,2]
[382604267,1756677043501,-151.0,0.000168,2]
[382604269,1756677043512,-156.04220786,0.00016811,2]
[382604271,1756677043521,-300.0,0.00016832,2]
[382604273,1756677043531,-300.0,0.00016832,2]
[382604275,1756677043541,-300.0,0.00016832,2]
[382604278,1756677043553,-300.0,0.00016832,2]
[382604279,1756677043563,-300.0,0.00016832,2]
[382604281,1756677043572,-300.0,0.00016832,2]
[382604284,1756677043583,-300.0,0.00016832,2]
[382604285,1756677043593,-300.0,0.00016832,2]
[382604287,1756677043602,-300.0,0.00016832,2]
[382604289,1756677043611,-300.0,0.00016832,2]
[382604291,1756677043622,-300.0,0.00016832,2]
[382604293,1756677043632,-300.0,0.00016832,2]
[382604295,1756677043642,-300.0,0.00016832,2]
[382604297,1756677043651,-300.0,0.00016832,2]
[382604299,1756677043660,-300.0,0.00016832,2]
[382604301,1756677043670,-600.0,0.00016832,2]
[382604303,1756677043679,-881.86472336,0.00016854,2]
[382604305,1756677043688,-560.78135382,0.00016862,2]
[382604307,1756677043697,-151.0,0.000169,2]
[382604309,1756677043707,-527.6327369,0.00017048,2]
[382604311,1756677043716,-480.0,0.00017048,2]
[382604313,1756677043726,-618.44,0.00017048,2]
[382604315,1756677043735,-776.29,0.00017048,2]
[382604317,1756677043744,-480.0,0.00017048,2]
[382604319,1756677043753,-488.92,0.00017048,2]
[382604321,1756677043762,-838.4,0.00017048,2]
[382604323,1756677043772,-480.0,0.00017049,2]
[382604325,1756677043781,-716.62,0.00017049,2]
[382604327,1756677043790,-480.0,0.00017049,2]
[382604329,1756677043799,-480.0,0.00017049,2]
[382604331,1756677043809,-480.0,0.00017049,2]
[382604333,1756677043818,-480.0,0.00017049,2]
[382604335,1756677043827,-611.39036016,0.00017049,2]
[382604337,1756677043837,-480.0,0.00017049,2]
[382604339,1756677043846,-480.0,0.00017049,2]
[382604340,1756677043855,-480.16,0.00017049,2]
[382604342,1756677043865,-480.0,0.00017049,2]
[382604344,1756677043874,-480.0,0.00017049,2]
[382604346,1756677043884,-480.0,0.00017049,2]
[382604348,1756677043893,-480.0,0.00017049,2]
[382604350,1756677043902,-480.0,0.00017049,2]
[382604352,1756677043912,-480.0,0.00017049,2]
[382604354,1756677043922,-480.0,0.00017049,2]
[382604356,1756677043931,-480.0,0.00017049,2]
[382604358,1756677043940,-480.0,0.00017049,2]
[382604360,1756677043949,-1535.08,0.00017049,2]
[382604362,1756677043958,-480.0,0.00017049,2]
[382604382,1756677044135,-480.0,0.00017049,2]
[382604384,1756677044145,-480.0,0.00017049,2]
[382604386,1756677044155,-480.0,0.00017049,2]
[382604388,1756677044164,-480.0,0.00017049,2]
[382604390,1756677044174,-480.0,0.00017049,2]
[382604392,1756677044183,-878.57,0.00017049,2]
[382604394,1756677044193,-1356.8,0.00017049,2]
[382604396,1756677044204,-480.0,0.00017049,2]
[382604398,1756677044213,-500.97,0.00017049,2]
[382604400,1756677044223,-1267.7,0.00017049,2]
[382604402,1756677044233,-480.0,0.00017049,2]
[382604404,1756677044242,-480.0,0.0001705,2]
[382604406,1756677044251,-480.0,0.00017051,2]
[382604408,1756677044261,-358.926302,0.00017051,2]
[382604410,1756677044271,-480.0,0.00017051,2]
[382604412,1756677044280,-480.0,0.00017051,2]
[382604414,1756677044290,-480.0,0.00017051,2]
[382604416,1756677044301,-480.0,0.00017051,2]
[382604418,1756677044310,-480.0,0.00017051,2]
[382604420,1756677044320,-480.0,0.00017051,2]
[382604422,1756677044329,-321.45943857,0.00017051,2]
[382604424,1756677044339,-480.0,0.00017051,2]
[382604426,1756677044349,-480.0,0.00017051,2]
[382604428,1756677044358,-480.0,0.00017051,2]
[382604430,1756677044367,-480.0,0.00017051,2]
[382604432,1756677044377,-480.0,0.00017051,2]
[382604434,1756677044386,-480.0,0.00017051,2]
[382604436,1756677044395,-480.0,0.00017051,2]
[382604438,1756677044405,-480.0,0.00017051,2]
[382604440,1756677044414,-480.0,0.00017051,2]
[382604442,1756677044424,-972.93,0.00017051,2]
[382604444,1756677044433,-480.0,0.00017051,2]
[382604446,1756677044442,-591.49,0.00017051,2]
[382604448,1756677044452,-480.0,0.00017051,2]
[382604450,1756677044461,-480.0,0.00017051,2]
[382604453,1756677044482,-704.47,0.00017051,2]
[382604455,1756677044493,-839.3,0.00017051,2]
[382604457,1756677044503,-480.0,0.00017051,2]
[382604459,1756677044514,-888.3,0.00017051,2]
[382604461,1756677044524,-777.26,0.00017051,2]
[382604464,1756677044535,-480.0,0.00017051,2]
[382604466,1756677044547,-480.0,0.00017051,2]
[382604468,1756677044557,-480.0,0.00017051,2]
[382604470,1756677044567,-830.74,0.00017051,2]
[382604472,1756677044577,-480.0,0.00017051,2]
[382604474,1756677044587,-480.0,0.00017051,2]
[382604476,1756677044598,-480.0,0.00017051,2]
[382604478,1756677044608,-480.0,0.00017051,2]
[382604480,1756677044618,-618.26,0.00017051,2]
[382604482,1756677044628,-668.67,0.00017051,2]
[382604484,1756677044639,-480.0,0.00017051,2]
[382604486,1756677044649,-480.0,0.00017051,2]
[382604488,1756677044659,-480.0,0.00017051,2]
[382604490,1756677044669,-480.0,0.00017051,2]
[382604492,1756677044680,-879.71,0.00017051,2]
[382604494,1756677044690,-480.0,0.00017051,2]
[382604496,1756677044700,-480.0,0.00017051,2]
[382604498,1756677044711,-480.0,0.00017051,2]
[382604500,1756677044721,-480.0,0.00017051,2]
[382604503,1756677044731,-480.0,0.00017051,2]
[382604505,1756677044741,-480.0,0.00017051,2]
[382604507,1756677044752,-480.0,0.00017051,2]
[382604509,1756677044762,-480.0,0.00017051,2]
[382604510,1756677044772,-724.4,0.00017051,2]
[382604511,1756677044782,-735.04,0.00017051,2]
[382604512,1756677044792,-480.0,0.00017051,2]
[382604513,1756677044802,-480.0,0.00017051,2]
[382604514,1756677044813,-809.88,0.00017051,2]
[382604515,1756677044823,-808.44,0.00017051,2]
[382604516,1756677044832,-480.0,0.00017051,2]
[382604517,1756677044842,-665.31,0.00017051,2]
[382604518,1756677044852,-480.0,0.00017051,2]
[382604519,1756677044862,-912.08,0.00017051,2]
[382604520,1756677044872,-941.2,0.00017051,2]
[382604521,1756677044882,-480.0,0.00017051,2]
[382604523,1756677044891,-480.0,0.00017051,2]
[382604525,1756677044901,-1043.97,0.00017051,2]
[382604528,1756677044911,-480.0,0.00017051,2]
[382604530,1756677044921,-480.0,0.00017051,2]
[382604532,1756677044931,-480.0,0.00017051,2]
[382604534,1756677044940,-480.0,0.00017051,2]
[382604536,1756677044950,-505.54,0.00017051,2]
[382604538,1756677044960,-480.0,0.00017051,2]
[382604540,1756677044970,-528.69,0.00017051,2]
[382604542,1756677044980,-480.0,0.00017051,2]
[382604544,1756677044990,-480.0,0.00017051,2]
[382604546,1756677045000,-480.0,0.00017051,2]
[382604548,1756677045011,-480.0,0.00017051,2]
[382604550,1756677045020,-480.0,0.00017051,2]
[382604552,1756677045030,-480.0,0.00017051,2]
[382604554,1756677045040,-1231.86,0.00017051,2]
[382604556,1756677045050,-778.24,0.00017051,2]
[382604558,1756677045060,-480.0,0.00017051,2]
[382604560,1756677045070,-480.0,0.00017051,2]
[382604562,1756677045080,-480.0,0.00017051,2]
[382604565,1756677045090,-480.0,0.00017051,2]
[382604567,1756677045100,-480.0,0.00017051,2]
[382604569,1756677045110,-480.0,0.00017051,2]
[382604571,1756677045120,-922.61,0.00017051,2]
[382604573,1756677045130,-480.0,0.00017051,2]
[382604575,1756677045139,-480.0,0.00017051,2]
[382604577,1756677045149,-480.0,0.00017051,2]
[382604579,1756677045159,-480.0,0.00017051,2]
[382604581,1756677045168,-530.0,0.00017051,2]
[382604583,1756677045178,-480.0,0.00017051,2]
[382604585,1756677045190,-480.0,0.00017051,2]
[382604587,1756677045200,-480.0,0.00017051,2]
[382604589,1756677045209,-480.0,0.00017051,2]
[382604591,1756677045219,-480.0,0.00017051,2]
[382604593,1756677045228,-480.0,0.00017051,2]
[382604595,1756677045238,-973.6,0.00017051,2]
[382604597,1756677045248,-480.0,0.00017051,2]
[382604599,1756677045258,-480.0,0.00017052,2]
[382604601,1756677045268,-480.0,0.00017052,2]
[382604603,1756677045277,-480.0,0.00017052,2]
[382604605,1756677045287,-480.0,0.00017052,2]
[382604608,1756677045296,-1029.15,0.00017052,2]
[382604611,1756677045306,-547.55,0.00017052,2]
[382604614,1756677045316,-480.0,0.00017052,2]
[382604617,1756677045327,-732.83,0.00017052,2]
[382604621,1756677045337,-544.21,0.00017052,2]
[382604623,1756677045349,-480.0,0.00017052,2]
[382604626,1756677045359,-480.0,0.00017052,2]
[382604629,1756677045369,-480.0,0.00017052,2]
[382604632,1756677045379,-480.0,0.00017052,2]
[382604635,1756677045389,-480.0,0.00017052,2]
[382604637,1756677045398,-480.0,0.00017052,2]
[382604639,1756677045408,-497.23,0.00017052,2]
[382604641,1756677045418,-488.6,0.00017052,2]
[382604643,1756677045428,-480.0,0.00017052,2]
[382604645,1756677045437,-480.0,0.00017052,2]
[382604647,1756677045447,-480.0,0.00017052,2]
[382604649,1756677045456,-626.02,0.00017052,2]
[382604651,1756677045466,-565.13,0.00017052,2]
[382604653,1756677045476,-480.0,0.00017052,2]
[382604655,1756677045486,-613.83,0.00017052,2]
[382604657,1756677045496,-480.0,0.00017052,2]
[382604659,1756677045507,-1657.54,0.00017052,2]
[382604661,1756677045516,-614.92,0.00017052,2]
[382604663,1756677045526,-480.0,0.00017052,2]
[382604665,1756677045536,-506.51,0.00017052,2]
[382604667,1756677045549,-1008.3,0.00017052,2]
[382604669,1756677045559,-4100.22,0.00017052,2]
[382604671,1756677045569,-706.88,0.00017052,2]
[382604673,1756677045578,-480.0,0.00017052,2]
[382604675,1756677045590,-480.0,0.00017052,2]
[382604677,1756677045599,-587.23,0.00017052,2]
[382604679,1756677045609,-766.0,0.00017052,2]
[382604681,1756677045619,-480.0,0.00017052,2]
[382604683,1756677045630,-619.44,0.00017052,2]
[382604685,1756677045639,-480.0,0.00017052,2]
[382604687,1756677045649,-480.0,0.00017052,2]
[382604689,1756677045659,-480.0,0.00017052,2]
[382604691,1756677045668,-480.0,0.00017052,2]
[382604693,1756677045678,-480.0,0.00017052,2]
[382604695,1756677045687,-3238.93,0.00017052,2]
[382604697,1756677045697,-609.25,0.00017052,2]
[382604699,1756677045706,-480.0,0.00017052,2]
[382604702,1756677045716,-3009.36,0.00017052,2]
[382604704,1756677045725,-1528.52,0.00017052,2]
[382604706,1756677045735,-909.97,0.00017052,2]
[382604708,1756677045745,-686.3,0.00017052,2]
[382604710,1756677045755,-707.75,0.00017052,2]
[382604712,1756677045764,-480.0,0.00017052,2]
[382604714,1756677045774,-480.0,0.00017052,2]
[382604716,1756677045783,-568.84,0.00017052,2]
[382604718,1756677045793,-480.0,0.00017052,2]
[382604720,1756677045803,-480.0,0.00017052,2]
[382604722,1756677045812,-550.46,0.00017052,2]
[382604724,1756677045823,-695.87,0.00017052,2]
[382604726,1756677045832,-480.0,0.00017052,2]
[382604728,1756677045842,-706.79,0.00017052,2]
[382604730,1756677045851,-480.0,0.00017052,2]
[382604732,1756677045861,-480.0,0.00017052,2]
[382604734,1756677045872,-480.0,0.00017052,2]
[382604736,1756677045882,-674.39,0.00017052,2]
[382604738,1756677045891,-480.0,0.00017052,2]
[382604740,1756677045902,-480.0,0.00017052,2]
[382604742,1756677045912,-808.69,0.00017052,2]
[382604744,1756677045922,-480.0,0.00017052,2]
[382604746,1756677045932,-480.0,0.00017052,2]
[382604748,1756677045941,-894.58,0.00017052,2]
[382604750,1756677045950,-1982.59,0.00017052,2]
[382604752,1756677045959,-755.56,0.00017052,2]
[382604754,1756677045969,-480.0,0.00017052,2]
[382604756,1756677045978,-480.0,0.00017052,2]
[382604758,1756677045987,-705.54,0.00017052,2]
[382604760,1756677045997,-480.0,0.00017053,2]
[382604762,1756677046006,-901.08,0.00017053,2]
[382604764,1756677046016,-882.01,0.00017053,2]
[382604766,1756677046026,-480.0,0.00017053,2]
[382604768,1756677046035,-480.0,0.00017053,2]
[382604770,1756677046045,-862.77,0.00017053,2]
[382604772,1756677046055,-480.0,0.00017053,2]
[382604774,1756677046065,-625.59969605,0.00017053,2]
[382604777,1756677046076,-480.0,0.00017053,2]
[382604778,1756677046086,-480.0,0.00017053,2]
[382604781,1756677046096,-480.0,0.00017053,2]
[382604783,1756677046106,-480.0,0.00017053,2]
[382604785,1756677046121,-480.0,0.00017053,2]
[382604788,1756677046137,-480.0,0.00017053,2]
[382604790,1756677046151,-480.0,0.00017053,2]
[382604793,1756677046165,-480.0,0.00017053,2]
[382604795,1756677046178,-480.0,0.00017053,2]
[382604797,1756677046189,-480.0,0.00017053,2]
[382604800,1756677046200,-480.0,0.00017053,2]
[382604802,1756677046213,-480.0,0.00017053,2]
[382604804,1756677046225,-480.0,0.00017053,2]
[382604807,1756677046237,-480.0,0.00017053,2]
[382604809,1756677046250,-480.0,0.00017053,2]
[382604811,1756677046262,-480.0,0.00017053,2]
[382604814,1756677046275,-480.0,0.00017053,2]
[382604816,1756677046287,-551.66,0.00017053,2]
[382604818,1756677046301,-480.0,0.00017053,2]
[382604821,1756677046314,-480.0,0.00017053,2]
[382604825,1756677046327,-480.0,0.00017053,2]
[382604830,1756677046338,-480.0,0.00017053,2]
[382604834,1756677046351,-597.03,0.00017053,2]
[382604840,1756677046365,-614.95,0.00017053,2]
[382604844,1756677046376,-500.0,0.00017053,2]
[382604847,1756677046388,-480.0,0.00017053,2]
[382604851,1756677046401,-480.0,0.00017053,2]
[382604853,1756677046414,-914.39,0.00017053,2]
[382604855,1756677046425,-876.51,0.00017053,2]
[382604857,1756677046436,-480.0,0.00017053,2]
[382604860,1756677046446,-480.0,0.00017053,2]
[382604862,1756677046456,-480.0,0.00017053,2]
[382604864,1756677046469,-480.0,0.00017053,2]
[382604866,1756677046479,-480.0,0.00017053,2]
[382604869,1756677046492,-480.0,0.00017053,2]
[382604871,1756677046504,-560.95,0.00017053,2]
[382604873,1756677046516,-721.42,0.00017053,2]
[382604876,1756677046530,-574.82,0.00017053,2]
[382604878,1756677046544,-480.0,0.00017053,2]
[382604880,1756677046560,-534.43,0.00017053,2]
[382604882,1756677046572,-481.15,0.00017053,2]
[382604885,1756677046586,-480.0,0.00017053,2]
[382604887,1756677046597,-480.0,0.00017053,2]
[382604889,1756677046607,-480.0,0.00017053,2]
[382604891,1756677046618,-480.0,0.00017053,2]
[382604893,1756677046628,-743.98,0.00017053,2]
[382604896,1756677046640,-480.0,0.00017053,2]
[382604898,1756677046652,-480.0,0.00017053,2]
[382604900,1756677046666,-502.95,0.00017053,2]
[382604903,1756677046679,-774.43,0.00017053,2]
[382604905,1756677046689,-480.0,0.00017053,2]
[382604907,1756677046699,-860.79,0.00017053,2]
[382604909,1756677046711,-398.33755648,0.00017053,2]
[382604911,1756677046722,-480.0,0.00017053,2]
[382604914,1756677046734,-732.44,0.00017053,2]
[382604916,1756677046746,-1347.77,0.00017053,2]
[382604918,1756677046758,-158.56996841,0.00017053,2]
[382604920,1756677046768,-480.0,0.00017053,2]
[382604923,1756677046779,-525.03,0.00017053,2]
[382604925,1756677046789,-480.0,0.00017053,2]
[382604927,1756677046800,-1046.11,0.00017053,2]
[382604929,1756677046811,-562.15,0.00017053,2]
[382604931,1756677046821,-480.0,0.00017053,2]
[382604933,1756677046832,-480.0,0.00017053,2]
[382604935,1756677046842,-480.0,0.00017053,2]
[382604938,1756677046853,-480.0,0.00017053,2]
[382604940,1756677046863,-480.0,0.00017053,2]
[382604942,1756677046874,-614.67,0.00017053,2]
[382604944,1756677046884,-480.0,0.00017053,2]
[382604946,1756677046895,-480.0,0.00017053,2]
[382604949,1756677046907,-480.0,0.00017053,2]
[382604951,1756677046918,-480.0,0.00017053,2]
[382604953,1756677046928,-480.0,0.00017053,2]
[382604955,1756677046940,-480.0,0.00017053,2]
[382604957,1756677046951,-480.0,0.00017053,2]
[382604959,1756677046962,-480.0,0.00017053,2]
[382604962,1756677046973,-480.0,0.00017053,2]
[382604964,1756677046984,-480.0,0.00017053,2]
[382604966,1756677046996,-833.79,0.00017054,2]
[382604968,1756677047008,-480.0,0.00017054,2]
[382604971,1756677047019,-480.0,0.00017054,2]
[382604973,1756677047030,-480.0,0.00017054,2]
[382604975,1756677047041,-480.0,0.00017054,2]
[382604977,1756677047052,-480.0,0.00017054,2]
[382604979,1756677047063,-484.24708627,0.00017055,2]
[382604982,1756677047075,-623.54466262,0.00017059,2]
[382604984,1756677047087,-501.40685948,0.00017073,2]
[382604986,1756677047098,-500.0,0.00017073,2]
[382604988,1756677047109,-500.0,0.00017073,2]
[382604990,1756677047119,-500.0,0.00017073,2]
[382604992,1756677047131,-500.0,0.00017073,2]
[382604994,1756677047142,-500.0,0.00017073,2]
[382604997,1756677047153,-500.75883026,0.00017073,2]
[382604999,1756677047165,-500.0,0.00017073,2]
[382605001,1756677047176,-500.0,0.00017073,2]
[382605003,1756677047188,-510.94333666,0.00017073,2]
[382605006,1756677047205,-500.0,0.00017073,2]
[382605008,1756677047216,-500.0,0.00017073,2]
[382605010,1756677047228,-500.0,0.00017073,2]
[382605012,1756677047239,-340.29691415,0.00017073,2]
[382605015,1756677047250,-259.75959681,0.00017073,2]
[382605017,1756677047261,-500.0,0.00017073,2]
[382605019,1756677047272,-500.0,0.00017073,2]
[382605021,1756677047283,-500.0,0.00017073,2]
[382605024,1756677047295,-213.79428328,0.00017073,2]
[382605026,1756677047306,-500.0,0.00017073,2]
[382605028,1756677047317,-500.0,0.00017073,2]
[382605030,1756677047327,-500.0,0.00017073,2]
[382605032,1756677047339,-500.0,0.00017073,2]
[382605035,1756677047350,-500.0,0.00017073,2]
[382605037,1756677047360,-500.0,0.00017073,2]
[382605039,1756677047370,-500.0,0.00017073,2]
[382605041,1756677047382,-881.86472336,0.00017078,2]
[382605043,1756677047393,-151.0,0.000171,2]
[382605045,1756677047404,-11364.23969824,0.00017127,2]
[382605047,1756677047415,-160.0,0.00017127,2]
[382605050,1756677047425,-417.15472785,0.00017127,2]
[382605052,1756677047436,-160.0,0.00017127,2]
[382605054,1756677047447,-845.95363151,0.00017127,2]
[382605056,1756677047458,-217.4012883,0.00017127,2]
[382605058,1756677047469,-232.78794292,0.00017127,2]
[382605060,1756677047480,-160.0,0.00017127,2]
[382605062,1756677047492,-530.02580203,0.00017127,2]
[382605065,1756677047503,-160.0,0.00017127,2]
[382605067,1756677047514,-160.0,0.00017127,2]
[382605069,1756677047525,-160.0,0.00017127,2]
[382605071,1756677047536,-160.0,0.00017127,2]
[382605073,1756677047549,-160.0,0.00017127,2]
[382605075,1756677047560,-425.75173308,0.00017127,2]
[382605077,1756677047571,-389.23249397,0.00017191,2]
[382605079,1756677047582,-500.0,0.00017191,2]
[382605081,1756677047594,-500.0,0.00017191,2]
[382605084,1756677047605,-247.69653566,0.00017191,2]
[382605086,1756677047616,-300.02526822,0.00017191,2]
[382605088,1756677047627,-151.0,0.000172,2]
[382605090,1756677047637,-151.0,0.000173,2]
[382605092,1756677047648,-881.86472336,0.00017302,2]
[382605094,1756677047659,-1000.0,0.00017321,2]
[382605096,1756677047669,-1000.0,0.00017321,2]
[382605098,1756677047679,-1000.0,0.00017321,2]
[382605100,1756677047690,-1014.00608882,0.00017321,2]
[382605102,1756677047701,-480.0,0.00017322,2]
[382605105,1756677047712,-618.44,0.00017322,2]
[382605107,1756677047723,-776.29,0.00017322,2]
[382605109,1756677047733,-480.0,0.00017322,2]
[382605111,1756677047745,-488.92,0.00017322,2]
[382605113,1756677047756,-838.4,0.00017322,2]
[382605115,1756677047767,-480.0,0.00017323,2]
[382605117,1756677047777,-716.62,0.00017323,2]
[382605119,1756677047788,-480.0,0.00017323,2]
[382605121,1756677047799,-480.0,0.00017323,2]
[382605123,1756677047809,-480.0,0.00017323,2]
[382605125,1756677047820,-480.0,0.00017323,2]
[382605127,1756677047831,-480.0,0.00017323,2]
[382605130,1756677047842,-480.16,0.00017323,2]
[382605132,1756677047853,-480.0,0.00017323,2]
[382605134,1756677047864,-480.0,0.00017323,2]
[382605136,1756677047874,-480.0,0.00017323,2]
[382605138,1756677047885,-480.0,0.00017323,2]
[382605140,1756677047896,-480.0,0.00017323,2]
[382605142,1756677047907,-480.0,0.00017323,2]
[382605144,1756677047918,-480.0,0.00017323,2]
[382605147,1756677047929,-480.0,0.00017323,2]
[382605149,1756677047940,-1535.08,0.00017323,2]
[382605151,1756677047951,-480.0,0.00017323,2]
[382605153,1756677047961,-480.0,0.00017323,2]
[382605155,1756677047971,-480.0,0.00017323,2]
[382605157,1756677047982,-480.0,0.00017323,2]
[382605159,1756677047992,-480.0,0.00017323,2]
[382605161,1756677048005,-480.0,0.00017323,2]
[382605163,1756677048016,-878.57,0.00017323,2]
[382605165,1756677048027,-1356.8,0.00017323,2]
[382605167,1756677048038,-480.0,0.00017323,2]
[382605170,1756677048049,-500.97,0.00017323,2]
[382605172,1756677048059,-1267.7,0.00017323,2]
[382605174,1756677048070,-480.0,0.00017323,2]
[382605176,1756677048081,-480.0,0.00017324,2]
[382605178,1756677048093,-480.0,0.00017325,2]
[382605180,1756677048104,-153.62373875,0.00017325,2]
[382605182,1756677048115,-480.0,0.00017325,2]
[382605184,1756677048126,-480.0,0.00017325,2]
[382605186,1756677048137,-450.20651157,0.00017325,2]
[382605189,1756677048149,-480.0,0.00017325,2]
[382605191,1756677048159,-480.0,0.00017325,2]
[382605193,1756677048170,-480.0,0.00017325,2]
[382605195,1756677048181,-480.0,0.00017325,2]
[382605197,1756677048193,-480.0,0.00017325,2]
[382605199,1756677048204,-480.0,0.00017325,2]
[382605201,1756677048215,-480.0,0.00017325,2]
[382605203,1756677048226,-480.0,0.00017325,2]
[382605205,1756677048237,-480.0,0.00017325,2]
[382605207,1756677048249,-972.93,0.00017325,2]
[382605209,1756677048260,-480.0,0.00017325,2]
[382605212,1756677048270,-591.49,0.00017325,2]
[382605214,1756677048281,-480.0,0.00017325,2]
[382605216,1756677048291,-480.0,0.00017325,2]
[382605218,1756677048302,-704.47,0.00017325,2]
[382605245,1756677048567,-839.3,0.00017325,2]
[382605249,1756677048595,-480.0,0.00017325,2]
[382605251,1756677048609,-888.3,0.00017325,2]
[382605253,1756677048619,-777.26,0.00017325,2]
[382605255,1756677048629,-480.0,0.00017325,2]
[382605257,1756677048640,-480.0,0.00017325,2]
[382605259,1756677048650,-480.0,0.00017325,2]
[382605261,1756677048660,-830.74,0.00017325,2]
[382605263,1756677048670,-480.0,0.00017325,2]
[382605265,1756677048679,-480.0,0.00017325,2]
[382605267,1756677048688,-394.9447422,0.00017325,2]
[382605269,1756677048698,-480.0,0.00017325,2]
[382605271,1756677048708,-618.26,0.00017325,2]
[382605273,1756677048718,-668.67,0.00017325,2]
[382605275,1756677048728,-480.0,0.00017325,2]
[382605277,1756677048738,-480.0,0.00017325,2]
[382605279,1756677048747,-480.0,0.00017325,2]
[382605281,1756677048757,-480.0,0.00017325,2]
[382605283,1756677048767,-879.71,0.00017325,2]
[382605285,1756677048776,-480.0,0.00017325,2]
[382605287,1756677048785,-246.97110178,0.00017325,2]